Cogmind - Beta 16.1 @@@ ROGUE MODE // 2026.04.05 @ 00:29:18 Player: Lazz Result: Destroyed by G-67 Veteran with Plasma Rifle Performance ------------- Evolutions (6) 3000 Regions Visited (11) 2200 Robots Destroyed (41) 205 Value Destroyed (1275) 1275 Prototype IDs (54) 1080 Alien Tech Used (1) 200 Bonus (1882) 1882 TOTAL SCORE: 9842 Bonus ------- Registered with UFD 300 Met Optimus in HQ 500 Met Warlord at Base 500 MAIN.C Attacked Warlord 500 Warlord Defense Kills 90 Friendly Fire -8 Cogmind --------- Core Integrity 0/1150 Matter 30/300 Energy 91/100 System Corruption 3% Temperature Cool (12) Movement Core (50) Location -4/Factory Parts ------- > --- POWER (2) -------- (None) > --- PROPULSION (6) --- (None) > --- UTILITY (9) ------ Improved Signal Interpreter > --- WEAPON (2) ------- (None) > --- INVENTORY (5) ---- Light Angular Momentum Engine Energy Well (350) Peak State ------------ > --- POWER ------------ Light Angular Momentum Engine Micro Antimatter Reactor > --- PROPULSION ------- Improved Treads Medium Treads Spiked Medium Treads Armored Huge Wheel > --- UTILITY ---------- Advanced Heat Sink Large Storage Unit Improved Signal Interpreter Experimental Propulsion Shielding Experimental Propulsion Shielding Advanced Focal Shield Makeshift Hacking Suite A0-MCA's Component Scanner > --- WEAPON ----------- Makeshift Shrapnel Gun Makeshift Sword > --- INVENTORY -------- Light Angular Momentum Engine Armored Leg Energy Well Small Matter Pod Advanced Sensor Array IFF Parser Surveybot 17 Chip Vortex Rail Vortex Rail Heavy Gauss Cannon Heavy Gauss Cannon Long-range Missile Launcher Plasma Cutter [Rating: 88] Favorites ----------- Power Light Deuterium Engine Engine Light Deuterium Engine Power Core Neutrino Core Reactor Micro Antimatter Reactor Propulsion Light Treads Treads Light Treads Leg Flexi-carbon Leg Wheel Armored Huge Wheel Utility Large Storage Unit Device Improved Sensor Array Storage Large Storage Unit Processor A0-MCA's Component Scanner Hackware Makeshift Hacking Suite Protection Light Armor Plating Weapon Shotgun Energy Gun Medium Laser Ballistic Gun Shotgun Ballistic Cannon Heavy Gauss Cannon Launcher Mini Grenade Launcher Special Weapon Plasma Cutter Impact Weapon Heavy Mace Slashing Weapon Makeshift Sword Build | -11 -10 -10 -9 -9 -6 -5 -5 -5 -5 -4 -4 ------- Run | Yrd Mat Sub Rec Scr Fac Fac Upp Upp War Pro Fac Slots Evolved 12 | . . . . . 8 2 . . . . 2 Power 1 | . . . . . 1 . . . . . . Propulsion 4 | . . . . . 3 . . . . . 1 Utility 7 | . . . . . 4 2 . . . . 1 Weapon . | . . . . . . . . . . . . Parts Attached 91 | 8 3 3 4 11 24 1 7 3 10 5 12 Power 17 | 2 . 1 . 3 1 . 2 2 3 2 1 Engine 9 | 2 . 1 . 2 1 . . 1 2 . . Core 6 | . . . . 1 . . 2 1 . 2 . Reactor 2 | . . . . . . . . . 1 . 1 Propulsion 25 | 2 . 1 1 4 8 . 2 . 3 1 3 Treads 5 | 2 . . . . . . . . 3 . . Leg 14 | . . . . 3 8 . . . . 1 2 Wheel 6 | . . 1 1 1 . . 2 . . . 1 Hover . | . . . . . . . . . . . . Flight . | . . . . . . . . . . . . Utility 29 | 2 1 . 3 2 12 . 2 1 2 1 3 Device 14 | 1 . . 1 . 6 . 2 1 . 1 2 Storage 4 | 1 1 . 1 1 . . . . . . . Processor 4 | . . . . 1 2 . . . . . 1 Hackware 2 | . . . . . 2 . . . . . . Protection 5 | . . . 1 . 2 . . . 2 . . Artifact . | . . . . . . . . . . . . Weapon 20 | 2 2 1 . 2 3 1 1 . 2 1 5 Energy Gun 3 | 1 . . . . . . . . 1 . 1 Energy Cannon . | . . . . . . . . . . . . Ballistic Gun 7 | 1 2 1 . 1 . 1 . . 1 . . Ballistic Cannon 4 | . . . . 1 1 . . . . 1 1 Launcher 3 | . . . . . 1 . . . . . 2 Special Weapon 1 | . . . . . . . . . . . 1 Impact Weapon 1 | . . . . . 1 . . . . . . Slashing Weapon 1 | . . . . . . . 1 . . . . Piercing Weapon . | . . . . . . . . . . . . Special Melee Weapon . | . . . . . . . . . . . . Unidentified Prototypes 1 | . . . . . . . . 1 . . . Corrupted Parts 2 | . . . . . 1 . . . . 1 . System Corruption 13 | . . . . . 6 . . . . 7 . Parts Lost 53 | . . 5 . . 10 . 1 9 2 6 20 Power 10 | . . 1 . . 2 . . 3 . 1 3 Propulsion 16 | . . 2 . . 3 . 1 3 . . 7 Utility 17 | . . 1 . . 2 . . 2 2 3 7 Weapon 10 | . . 1 . . 3 . . 1 . 2 3 Highest Loss Streak 14 | . . 4 . . 4 . 1 5 2 3 14 To Critical Strikes 2 | . . . . . . . . . . . 2 Average Backups 11 | 3 7 8 9 13 11 10 10 14 14 13 12 Power . | . 1 1 1 1 . . . . . 1 1 Propulsion 2 | 1 3 3 2 3 2 3 1 1 1 3 2 Utility 3 | . 1 1 2 3 4 4 5 5 4 4 3 Weapon 4 | . 2 2 2 5 3 1 2 5 5 4 4 Tool/Special . | . . . . . . . . . . . . Unused Backups 11 | . . . . 2 . . . . 4 . 5 Power 2 | . . . . . . . . . . . 2 Propulsion . | . . . . . . . . . . . . Utility 3 | . . . . 1 . . . . . . 2 Weapon 4 | . . . . 1 . . . . 2 . 1 Tool/Special 2 | . . . . . . . . . 2 . . Average Slot Usage (%) 85 | . 99 98 99 99 85 50 70 82 64 69 59 Engine 8 | . 14 13 14 14 11 . . 1 5 2 . Core 1 | . . . . . . . 2 8 . 3 6 Treads 7 | . 27 27 . . . . . . 2 17 11 Leg 5 | . . . . 6 27 11 5 2 . . 4 Wheel 9 | . . . 28 21 . . 11 14 5 5 3 Device 8 | . 14 12 2 . 9 5 10 14 14 6 6 Storage 9 | . 14 14 14 14 6 5 5 5 5 5 4 Processor 7 | . . . . 7 9 11 11 11 11 11 10 Hackware 2 | . . . . . . 11 11 8 5 5 3 Protection 2 | . . . 11 6 6 . . . 2 . . Ballistic Gun 14 | . 26 28 28 27 . 3 5 4 2 2 . Ballistic Cannon 1 | . . . . . 6 . . . . 2 5 Slashing Weapon 1 | . . . . . . . 2 5 5 2 . Peak Build Rating 88 | 7 10 11 13 37 78 44 75 76 88 85 84 Average Rating 38 | 5 9 9 11 18 61 43 55 66 59 61 64 On Entrance 36 | . 7 10 10 12 37 42 44 75 53 80 69 Avg Prop Armor Cover (%) 12 | . . 12 . 7 11 12 7 5 22 23 21 Naked Turns . | . . . . . . . . . . . . Heaviest Build 67 | 15 22 22 34 40 56 24 58 58 47 52 67 Greatest Support 110 | 40 40 40 36 47 110 30 48 48 28 28 79 Greatest Overweight (x) 3 | 2 . 1 . 3 1 . 1 1 1 1 3 Average Overweight (x) . | . . . . . . . . . . . . Largest Inventory Capacity 15 | 8 10 10 15 15 15 15 15 15 15 15 15 Average Capacity 13 | 7 9 10 13 15 15 15 15 15 15 15 13 Most Carried 15 | 6 8 9 11 15 15 12 15 15 15 14 15 Average Carried 11 | 3 7 8 9 13 12 11 10 14 14 13 12 Final Capacity 15 | 8 10 10 15 15 15 15 15 15 15 15 5 Final Carried 15 | 6 8 8 11 15 12 12 13 14 15 13 2 Class Distribution -------------------- 64% | Mutant 29% | Scavenger-Mutant 6% | Hacker-Mutant Dominant Class ---------------- Mutant | -10/Materials Mutant | -10/Subcaves Mutant | -9/Recycling Mutant | -9/Scraptown Scavenger-Mutant | -6/Factory Hacker-Mutant | -5/Factory Hacker-Mutant | -5/Upper Caves Scavenger-Mutant | -5/Upper Caves Mutant | -5/Warlord Scavenger-Mutant | -4/Proximity Caves Scavenger-Mutant | -4/Factory Resources | -11 -10 -10 -9 -9 -6 -5 -5 -5 -5 -4 -4 ----------- Run | Yrd Mat Sub Rec Scr Fac Fac Upp Upp War Pro Fac Matter Collected 1983 | 345 66 149 93 223 179 167 308 89 176 61 127 Remotely 79 | . . . . . . . 50 29 . . . Salvage Created 1965 | 157 101 149 93 . 348 117 255 552 40 48 105 Parts 81 | 10 5 10 10 . 14 3 4 9 3 5 8 Haulers Intercepted 1 | . 1 . . . . . . . . . . Recyclers Shooed 2 | 1 . . . . 1 . . . . . . Parts Field Recycled . | . . . . . . . . . . . . Retrieved Matter . | . . . . . . . . . . . . Parts Self-Destructed 13 | . . 3 . . . . . 3 . 7 . Prevented . | . . . . . . . . . . . . Parts Restored . | . . . . . . . . . . . . Kills | -11 -10 -10 -9 -9 -6 -5 -5 -5 -5 -4 -4 ------- Run | Yrd Mat Sub Rec Scr Fac Fac Upp Upp War Pro Fac Combat Hostiles Destroyed 28 | . 1 4 1 . 10 . . 2 3 3 4 Melee 1 | . . . . . . . . . . 1 . Guns 13 | . 1 4 1 . . . . 2 3 1 1 Cannons 6 | . . . . . 3 . . . . 1 2 AOE 6 | . . . . . 5 . . . . . 1 Classes Destroyed 15 | 3 3 1 2 . 3 . 1 1 1 . . Worker 4 | 2 . . . . 1 . . . . . 1 Builder 4 | . . . 2 . 1 . . . . . 1 Tunneler 1 | 1 . . . . . . . . . . . Hauler 1 | . 1 . . . . . . . . . . Recycler 2 | 1 . . . . . 1 . . . . . Watcher 1 | . 1 . . . . . . . . . . Swarmer 5 | . . . . . . . . 2 . 3 . Cutter 3 | . . . . . 3 . . . . . . Saboteur 3 | . . . . . . . . . 3 . . Grunt 6 | . 1 . . . 5 . . . . . . Sentry 1 | . . . 1 . . . . . . . . Hunter 3 | . . . . . 1 . . . . . 2 Programmer 3 | . . . . . 1 . . . . . 2 Subdweller 4 | . . 4 . . . . . . . . . Decomposer 1 | . . . . . . . 1 . . . . Packrat 2 | . . . . . . . 2 . . . . Samaritan 3 | . . . . . . . 3 . . . . Best Kill Streak 5 | 2 1 2 1 . 5 1 . 2 3 3 3 Combat Bots Only 5 | . 1 2 1 . 5 . . 2 3 3 3 Max Kills in Single Turn 2 | 1 1 1 1 . 2 1 1 1 1 1 1 Gunslinging . | . . . . . . . . . . . . Exploded 2 | . . . . . 2 . . . . . 1 Melee 1 | . . . . . . . . . . 1 . Uniques/NPCs Destroyed . | . . . . . . . . . . . . Combat | -11 -10 -10 -9 -9 -6 -5 -5 -5 -5 -4 -4 -------- Run | Yrd Mat Sub Rec Scr Fac Fac Upp Upp War Pro Fac Hostile Shots Fired 642 | . 5 72 4 . 151 . . 74 41 60 235 Missed 205 | . 1 25 1 . 55 . . 20 16 21 66 Hits 437 | . 4 47 3 . 96 . . 54 25 39 169 Melee 9 | . . . . . 7 . . . 1 . 1 Projectile 428 | . 4 47 3 . 89 . . 54 24 39 168 AOE 2 | . . . . . . . . . . . 2 Critical Strikes 29 | . . . 1 . 11 . . 1 2 1 13 Actively Blocked 2 | . . . . . . . . . 2 . . Part Disruptions 1 | . . . . . . . . . . . 1 Damage Taken 8210 | . 60 804 44 36 2224 . . 708 554 724 3056 Core 1782 | . . 237 . . 202 . . 33 34 105 1171 Absorbed by Shields . | . . . . . . . . . . . . Redirected to Shielding 326 | . . . . . . . . . 295 31 . Ignored by Resistances 202 | . . . . . . . . 202 . . . Regen/Repaired (Parts) 178 | . . . . . . . . . 178 . . Core Remaining (%) 65 | 100 . . . 5 76 . . . . 82 . Volleys Fired 147 | 5 8 15 9 3 18 4 22 13 13 9 28 Largest 2 | 2 2 2 2 2 2 1 1 1 1 1 2 Hottest 102 | 70 46 46 46 46 84 23 23 23 24 51 102 Shots Fired 215 | 10 16 30 18 5 28 4 22 13 13 9 47 Gun 141 | 10 16 30 18 4 . 4 22 13 13 6 5 Cannon 59 | . . . . 1 21 . . . . 3 34 Launcher 11 | . . . . . 7 . . . . . 4 Special 4 | . . . . . . . . . . . 4 Kinetic 190 | 5 16 30 18 5 21 4 22 13 13 9 34 Thermal 9 | 5 . . . . . . . . . . 4 Explosive 11 | . . . . . 7 . . . . . 4 Electromagnetic . | . . . . . . . . . . . . Entropic 5 | . . . . . . . . . . . 5 Robot Hit Streak 16 | 3 6 11 5 . 6 14 16 3 6 2 10 Robot Miss Streak 10 | 1 2 2 8 . 5 . 1 10 2 4 2 Penetration Max . | . . . . . . . . . . . . Secondary Targets . | . . . . . . . . . . . . Shots Hit Robots 192 | 6 15 29 10 . 33 4 28 20 13 8 26 Core Hits 112 | 5 6 12 4 . 26 5 14 9 13 7 11 Critical Kills . | . . . . . . . . . . . . Critical Parts Destroyed 2 | . . . . . 2 . . . . . . Critical Strikes 7 | . . . . . 3 . . . . 1 3 Blast 5 | . . . . . 1 . . . . 1 3 Smash 2 | . . . . . 2 . . . . . . Melee Attacks 49 | . . . . . 23 . 6 18 . 2 . Impact 23 | . . . . . 23 . . . . . . Slashing 26 | . . . . . . . 6 18 . 2 . Piercing . | . . . . . . . . . . . . Sneak Attacks 8 | . . . . . 2 . 6 . . . . Combat Hostiles . | . . . . . . . . . . . . Follow-up Attacks . | . . . . . . . . . . . . Damage Inflicted 6091 | 74 227 470 139 . 1584 82 819 915 303 190 1288 Guns 1960 | 74 227 470 139 . . 82 368 117 303 80 100 Cannons 1320 | . . . . . 400 . . . . 72 848 Explosions 1004 | . . . . . 672 . . . . . 332 Melee 1799 | . . . . . 512 . 451 798 . 38 . Ramming 8 | . . . . . . . . . . . 8 Kinetic 3130 | 24 227 470 139 . 400 82 368 117 303 152 848 Thermal 50 | 50 . . . . . . . . . . . Explosive 1004 | . . . . . 672 . . . . . 332 Electromagnetic . | . . . . . . . . . . . . Impact 512 | . . . . . 512 . . . . . . Slashing 1287 | . . . . . . . 451 798 . 38 . Piercing . | . . . . . . . . . . . . Entropic 100 | . . . . . . . . . . . 100 Highest Corruption 11 | . . . . . 11 1 1 1 1 7 3 Average Corruption 1 | . . . . . 2 1 1 1 1 7 2 Corruption Purged . | . . . . . . . . . . . . Corruption Blocked . | . . . . . . . . . . . . Effects 19 | . . . . . 3 . 6 4 1 . 5 Message Errors 2 | . . . . . . . 1 . . . 1 Matter Fused 4 | . . . . . . . 1 2 1 . . Energy Discharges 3 | . . . . . 1 . 1 . . . 1 Parts Fused 1 | . . . . . . . 1 . . . . Data Loss (minor) 7 | . . . . . 1 . 2 2 . . 2 Misfires 1 | . . . . . . . . . . . 1 Misdirections 1 | . . . . . 1 . . . . . . Overload Shots . | . . . . . . . . . . . . Overflow Damage 736 | . . . . . 220 . 136 277 . . 103 Projectiles 103 | . . . . . . . . . . . 103 Explosions 6 | . . . . . 6 . . . . . . Melee 627 | . . . . . 214 . 136 277 . . . Knockbacks 25 | . . . . . 15 . . . . 1 9 Impact 2 | . . . . . 2 . . . . . . Kinetic 22 | . . . . . 12 . . . . 1 9 Secondary 1 | . . . . . 1 . . . . . . Self-Inflicted Damage 85 | . . . . . 83 . . . . . 2 Shots 2 | . . . . . 2 . . . . . . Rammed 1 | . . . . . . . . . . . 1 Targets Rammed 2 | . . . . . . . . . . . 2 Kicked 1 | . . . . . . . . . . . 1 Crushed . | . . . . . . . . . . . . Highest Temperature 309 | 27 4 . 9 16 309 . . . . . 168 Average Temperature 84 | 12 4 . 6 9 149 . . . . . 64 Received Heat Transfer 1365 | . 36 228 27 30 348 . . 109 114 78 395 Effects 3 | . . . . . 3 . . . . . . Interference 3 | . . . . . 3 . . . . . . Siege Activations . | . . . . . . . . . . . . Martial Activations . | . . . . . . . . . . . . Shielding Activations . | . . . . . . . . . . . . Robots Disrupted . | . . . . . . . . . . . . Combat Hostiles . | . . . . . . . . . . . . Robots Corrupted 3 | . . . . . 3 . . . . . . Combat Hostiles 2 | . . . . . 2 . . . . . . Parts Fried 2 | . . . . . 2 . . . . . . Impact Corruptions 10 | . . . . . 10 . . . . . . Robots Melted . | . . . . . . . . . . . . Combat Hostiles . | . . . . . . . . . . . . Parts Melted . | . . . . . . . . . . . . Heat Transferred 148 | 148 . . . . . . . . . . . Parts Sabotaged . | . . . . . . . . . . . . Parts Stolen . | . . . . . . . . . . . . Parts Stripped . | . . . . . . . . . . . . Power Chain Reactions . | . . . . . . . . . . . . Alert | -11 -10 -10 -9 -9 -6 -5 -5 -5 -5 -4 -4 ------- Run | Yrd Mat Sub Rec Scr Fac Fac Upp Upp War Pro Fac Maximum Alert Level . | . . . . . . . . . . . . Low Security (%) 100 | 100 100 . 100 . 100 100 . . . . 100 Level 1 . | . . . . . . . . . . . . Level 2 . | . . . . . . . . . . . . Level 3 . | . . . . . . . . . . . . Level 4 . | . . . . . . . . . . . . Level 5 . | . . . . . . . . . . . . High Security . | . . . . . . . . . . . . Max Security . | . . . . . . . . . . . . Peak Influence 160 | 10 35 . 62 . 141 40 . . . . 160 Initial 40 | . . . . . . 40 . . . . . Average 23 | 1 3 . 19 . 31 27 . . . . 37 Influence Increases 1316 | 20 73 . 113 . 376 5 . 145 60 85 439 Destroy 0b10 Robot/C 480 | . 20 . 20 . 200 . . 40 60 60 80 Destroy 0b10 Robot/NC 65 | 20 10 . 10 . 10 5 . . . . 10 Destroy Leader 84 | . 14 . . . 40 . . . . 10 20 Successful Hack 37 | . 14 . 23 . . . . . . . . Select Force Hacks 60 | . . . 60 . . . . . . . . Disable Machine 60 | . . . . . 30 . . . . . 30 Destroy Structure 155 | . . . . . 51 . . . . . 104 Lose Combat Pursuer 375 | . 15 . . . 45 . . 105 . 15 195 Influence Decreases 1196 | 20 73 . 113 . 292 74 15 145 42 103 319 Entered New Map 68 | . . . . . . 44 6 . . 18 . Time Decay 775 | 20 69 . 93 . 200 30 9 126 32 65 131 Lost Part 329 | . . . . . 92 . . 19 10 20 188 Purge Threat 24 | . 4 . 20 . . . . . . . . Squads Dispatched 20 | . . . . . 8 3 . 1 . . 8 Investigation 11 | . . . . . 4 2 . . . . 5 Extermination 4 | . . . . . 2 . . . . . 2 Reinforcement 3 | . . . . . 2 . . . . . 1 Assault 1 | . . . . . . . . 1 . . . Garrison 1 | . . . . . . 1 . . . . . Intercept . | . . . . . . . . . . . . Searches Triggered . | . . . . . . . . . . . . Construction Impeded 1 | . . . . . 1 . . . . . . Haulers Reinforced . | . . . . . . . . . . . . Active Scanning Responses . | . . . . . . . . . . . . Cargo Convoy Interrupts . | . . . . . . . . . . . . Stealth | -11 -10 -10 -9 -9 -6 -5 -5 -5 -5 -4 -4 --------- Run | Yrd Mat Sub Rec Scr Fac Fac Upp Upp War Pro Fac Distress Signals 3 | . . . . . 2 . . . 1 . . Communications Jammed . | . . . . . . . . . . . . Distress Signals . | . . . . . . . . . . . . Times Spotted 140 | . 6 10 1 6 20 . . 11 45 8 33 Peak Tracking Total 18 | . 3 6 1 4 7 . . 9 18 4 17 Tactical Retreats 13 | . 1 . . . 3 . . 3 . 1 5 Traps | -11 -10 -10 -9 -9 -6 -5 -5 -5 -5 -4 -4 ------- Run | Yrd Mat Sub Rec Scr Fac Fac Upp Upp War Pro Fac Traps Triggered 5 | . 1 2 . . . . . . . . 2 Indirectly . | . . . . . . . . . . . . Trap Hack Attempts . | . . . . . . . . . . . . Triggered . | . . . . . . . . . . . . Disarmed . | . . . . . . . . . . . . Reprogrammed . | . . . . . . . . . . . . Reused . | . . . . . . . . . . . . Traps Extracted . | . . . . . . . . . . . . Installed . | . . . . . . . . . . . . Triggered . | . . . . . . . . . . . . Machines | -11 -10 -10 -9 -9 -6 -5 -5 -5 -5 -4 -4 ---------- Run | Yrd Mat Sub Rec Scr Fac Fac Upp Upp War Pro Fac Machines Disabled 6 | . . . . 1 2 . . 1 . . 2 Max in Single Turn 1 | . . . . 1 1 . . 1 . . 1 Machines Repaired . | . . . . . . . . . . . . Machines Dismantled . | . . . . . . . . . . . . Machines Sabotaged . | . . . . . . . . . . . . Overloaded Fab Kills . | . . . . . . . . . . . . Hacking | -11 -10 -10 -9 -9 -6 -5 -5 -5 -5 -4 -4 --------- Run | Yrd Mat Sub Rec Scr Fac Fac Upp Upp War Pro Fac Machines Accessed 48 | . 3 1 7 6 6 2 1 2 11 1 8 Terminals 15 | . 3 . 5 . 1 1 . . . 1 4 Fabricators . | . . . . . . . . . . . . Repair Stations . | . . . . . . . . . . . . Recycling Units 10 | . . . 2 . 4 . . . . . 4 Scanalyzers 2 | . . . . . 1 1 . . . . . Garrison Access . | . . . . . . . . . . . . Total Hacks 139 | . 7 5 19 43 11 10 1 2 24 1 16 Successful 108 | . 4 5 10 43 3 8 1 2 24 1 7 Failed 31 | . 3 . 9 . 8 2 . . . . 9 Catastrophic 5 | . . . 2 . 1 1 . . . . 1 Database Lockouts . | . . . . . . . . . . . . Manual 20 | . 2 . 2 . 8 . . . . . 8 Terminals 35 | . 7 . 15 . 1 2 . . . 1 9 Fabricators . | . . . . . . . . . . . . Repair Stations . | . . . . . . . . . . . . Recycling Units 19 | . . . 4 . 8 . . . . . 7 Scanalyzers 10 | . . . . . 2 8 . . . . . Garrison Access . | . . . . . . . . . . . . Terminal Hacks 88 | . 3 5 6 43 . . 1 2 24 1 3 Record 62 | . . 5 . 43 . . . 1 12 1 . Part Schematic 1 | . . . 1 . . . . . . . . Robot Analysis 1 | . 1 . . . . . . . . . . Prototype ID Bank 11 | . . . . . . . . . 11 . . Open Door 3 | . . . . . . . 1 1 1 . . Open DSF 1 | . . . . . . . . . . . 1 Emergency Access Points 1 | . . . 1 . . . . . . . . Terminal Index 1 | . 1 . . . . . . . . . . Unreport Threat 3 | . 1 . 2 . . . . . . . . Hauler Manifests 1 | . . . . . . . . . . . 1 Zone Layout 3 | . . . 2 . . . . . . . 1 Fabricator Hacks . | . . . . . . . . . . . . Repair Station Hacks . | . . . . . . . . . . . . Recycling Unit Hacks 3 | . . . 2 . . . . . . . 1 Report Inventory 1 | . . . . . . . . . . . 1 Retrieve Components 2 | . . . 2 . . . . . . . . Scanalyzer 9 | . . . . . 1 8 . . . . . Insert Component 3 | . . . . . . 3 . . . . . Analyze 4 | . . . . . . 4 . . . . . Retrieve Study 2 | . . . . . 1 1 . . . . . Garrison Access Hacks . | . . . . . . . . . . . . Unauthorized Hacks 8 | . 1 . 2 . 2 . . . . . 3 Terminals 1 | . 1 . . . . . . . . . . Botnet 1 | . 1 . . . . . . . . . . Fabricators . | . . . . . . . . . . . . Repair Stations . | . . . . . . . . . . . . Recycling Units 7 | . . . 2 . 2 . . . . . 3 Tunnel 2 | . . . 2 . . . . . . . . Fedlink 5 | . . . . . 2 . . . . . 3 Scanalyzers . | . . . . . . . . . . . . Garrison Access . | . . . . . . . . . . . . Data Cores Recovered . | . . . . . . . . . . . . Used . | . . . . . . . . . . . . Hacking Detections 20 | . 3 . 5 . 4 2 . . . 1 5 Full Trace Events 9 | . . . 3 . 2 2 . . . . 2 Feedback Events 2 | . . . . . 1 1 . . . . . Corruption 2 | . . . . . 1 1 . . . . . Feedback Blocked . | . . . . . . . . . . . . Robot Schematics Acquired . | . . . . . . . . . . . . Robots Built . | . . . . . . . . . . . . Authchips . | . . . . . . . . . . . . Time . | . . . . . . . . . . . . Total Robot Build Rating . | . . . . . . . . . . . . Part Schematics Acquired 4 | . . . 1 . . 3 . . . . . Parts Built . | . . . . . . . . . . . . Authchips . | . . . . . . . . . . . . Time . | . . . . . . . . . . . . Total Part Build Rating . | . . . . . . . . . . . . Part Studies Acquired 2 | . . . . . 1 1 . . . . . Parts Repaired . | . . . . . . . . . . . . Time . | . . . . . . . . . . . . Parts Recycled . | . . . . . . . . . . . . Recycled Matter . | . . . . . . . . . . . . Retrieved Matter . | . . . . . . . . . . . . Retrieved Components 2 | . . . 2 . . . . . . . . Parts Scanalyzed 3 | . . . . . . 3 . . . . . Part Schematics Acquired 3 | . . . . . . 3 . . . . . Parts Damaged . | . . . . . . . . . . . . Bothacking | -11 -10 -10 -9 -9 -6 -5 -5 -5 -5 -4 -4 ------------ Run | Yrd Mat Sub Rec Scr Fac Fac Upp Upp War Pro Fac Used RIF Installer . | . . . . . . . . . . . . Robots Hacked . | . . . . . . . . . . . . Non-combat . | . . . . . . . . . . . . Combat . | . . . . . . . . . . . . Robot Hacks Applied . | . . . . . . . . . . . . Relay Couplers Released . | . . . . . . . . . . . . Fabnet Peak Effective % . | . . . . . . . . . . . . Robots Rewired . | . . . . . . . . . . . . Allies Hacked . | . . . . . . . . . . . . Hacks Repelled . | . . . . . . . . . . . . Allies | -11 -10 -10 -9 -9 -6 -5 -5 -5 -5 -4 -4 -------- Run | Yrd Mat Sub Rec Scr Fac Fac Upp Upp War Pro Fac Total Allies . | . . . . . . . . . . . . Largest Group . | . . . . . . . . . . . . Highest-Rated Group . | . . . . . . . . . . . . Highest-Rated Ally . | . . . . . . . . . . . . Initial UFD Resources 45 | . . . . . 23 41 41 41 41 45 45 Total Orders . | . . . . . . . . . . . . Ally Attacks . | . . . . . . . . . . . . Total Damage . | . . . . . . . . . . . . Kills . | . . . . . . . . . . . . Allies Corrupted . | . . . . . . . . . . . . Allies Melted 1 | . . . . . . . . . 1 . . Intel | -11 -10 -10 -9 -9 -6 -5 -5 -5 -5 -4 -4 ------- Run | Yrd Mat Sub Rec Scr Fac Fac Upp Upp War Pro Fac Active Infowar (turns) 4247 | 70 472 892 47 . 487 79 550 831 . 357 462 Optics 47 | . . . 47 . . . . . . . . Sensors 2762 | . . . . . 487 79 550 831 . 357 458 IFF 208 | . . . . . 204 . . . . . 4 Seismic 1434 | 70 472 892 . . . . . . . . . Robot Analysis Total 1 | . 1 . . . . . . . . . . Derelict Logs Recovered 7 | . . 1 . 2 . . 1 3 . . . Drone Launches . | . . . . . . . . . . . . Drone Recoveries . | . . . . . . . . . . . . Exploration | -11 -10 -10 -9 -9 -6 -5 -5 -5 -5 -4 -4 ------------- Run | Yrd Mat Sub Rec Scr Fac Fac Upp Upp War Pro Fac Turns Passed 7757 | 179 472 973 316 1890 718 79 550 854 733 357 636 Spaces Moved 5484 | 93 131 548 237 1351 468 148 506 557 680 298 467 Core 156 | 9 . . . . . . . . . . 147 Treads 753 | 84 131 511 . . . . . . 1 . 26 Legs 826 | . . . . 92 468 148 99 . . . 19 Wheels 3749 | . . 37 237 1259 . . 407 557 679 298 275 Hover . | . . . . . . . . . . . . Flight . | . . . . . . . . . . . . Fastest Speed 45 | 50 160 120 105 73 45 45 45 83 90 90 50 Average Speed 107 | 152 160 157 105 111 100 45 79 98 98 104 96 Slowest Speed 240 | 160 160 240 105 195 185 45 100 105 240 105 200 Overloaded Moves 487 | . . . . 35 205 148 99 . . . . Propulsion Burnouts 1 | . . . . . . . 1 . . . . Robots Hopped . | . . . . . . . . . . . . Potential Cave-ins 3 | . . . . . . . . 3 . . . Cave-ins Triggered 1 | . . . . . 1 . . . . . . Exploration Rate (%) 44 | 4 29 36 64 86 21 4 65 67 89 51 16 Regions Visited 11 Branch Regions 7 Pre-discovered Areas 4 | . . 1 2 . 1 . . . . . . Known Exits Taken 7 | . . 1 . . 1 1 1 1 1 1 . Unknown Exits Taken 4 | 1 1 . 1 1 . . . . . . . Scrap Searched 7 | . . . . 3 . . 4 . . . . Spaces Dug 34 | . . . . . 24 . . 5 . . 5 Terrain Destroyed 151 | . . . . . 52 . . 5 . 2 92 Melee 14 | . . . . . 9 . . 5 . . . Projectile 33 | . . . . . 4 . . . . 2 27 AOE 104 | . . . . . 39 . . . . . 65 Terrain Rammed . | . . . . . . . . . . . . Walls Destroyed . | . . . . . . . . . . . . Machines Disabled . | . . . . . . . . . . . . Actions | -11 -10 -10 -9 -9 -6 -5 -5 -5 -5 -4 -4 --------- Run | Yrd Mat Sub Rec Scr Fac Fac Upp Upp War Pro Fac Total 7062 | 116 378 626 286 1742 645 156 621 832 732 330 598 Wait 1177 | 6 230 59 32 343 92 1 74 238 10 17 75 Move 5473 | 92 130 547 236 1350 467 147 505 556 679 297 467 Hop . | . . . . . . . . . . . . Pick Up 56 | 5 2 2 4 11 8 2 6 2 9 . 5 Fast Attach 45 | 7 4 1 . 5 8 . 4 3 8 2 3 Attach 38 | . . 2 3 3 10 1 4 1 2 2 10 Detach 3 | . . . 1 2 . . . . . . . Swap 27 | 1 1 . 1 8 9 . . . 1 1 5 Drop 45 | . 3 . . 17 10 1 . 1 10 . 3 Fire 147 | 5 8 15 9 3 18 4 22 13 13 9 28 Melee 49 | . . . . . 23 . 6 18 . 2 . Ram 1 | . . . . . . . . . . . 1 Kick 1 | . . . . . . . . . . . 1 Crush . | . . . . . . . . . . . . Escape Stasis . | . . . . . . . . . . . . Rewire . | . . . . . . . . . . . . Trap . | . . . . . . . . . . . . Miscellaneous . | . . . . . . . . . . . . Route ------- -11/Scrapyard -10/Materials -10/Subcaves (discovered 3 exits: Mat x2 / *Rec) -9/Recycling -9/Scraptown -6/Factory (discovered 7 exits: *Fac x4 / Low / Ext x2) -5/Factory -5/Upper Caves -5/Upper Caves (discovered 2 exits: Fac / *War) -5/Warlord -4/Proximity Caves -4/Factory History --------- Turn | Location | Event 10 | -11/Scrapyard | Discovered new exit (range 16) 180 | -11/Scrapyard | Entered Materials 309 | -10/Materials | Build established: Mutant 617 | -10/Materials | Discovered new exit (range 5) 652 | -10/Materials | Entered Subcaves 746 | -10/Subcaves | A swath of the cavern ceiling suddenly collapsed 1200 | -10/Subcaves | Visited Clippyterm 1205 | -10/Subcaves | Identified exit to Materials 1205 | -10/Subcaves | Identified exit to Recycling 1205 | -10/Subcaves | Learned 40 Factory zone layouts 1271 | -10/Subcaves | Learned location of Storage (-9) 1348 | -10/Subcaves | A swath of the cavern ceiling suddenly collapsed 1557 | -10/Subcaves | Core integrity fell below 50% 1593 | -10/Subcaves | Lost 4 parts (1p1n1u1w) 1619 | -10/Subcaves | Core integrity fell below 20% 1625 | -10/Subcaves | Entered Recycling 1916 | -9/Recycling | Scanned before Scraplab entrance 1931 | -9/Recycling | Entered Scraplab 1939 | -9/Recycling | Discovered new exit (range 2) 1941 | -9/Recycling | Entered Scraptown 2306 | -9/Scraptown | Scanned Subdweller tech in exchange for log data 2309 | -9/Scraptown | Learned Factory non-interactive machine intel 2310 | -9/Scraptown | Learned 8 Factory zone layouts 2335 | -9/Scraptown | Visited Shadow of the Wyrm 2362 | -9/Scraptown | Visited Assassins FH 2372 | -9/Scraptown | Visited Spacefarers 2527 | -9/Scraptown | Visited Symbiants 2557 | -9/Scraptown | Visited Cyclists 2587 | -9/Scraptown | Visited IN-MT5's Study 2616 | -9/Scraptown | Visited Fellowship of the Rings 2642 | -9/Scraptown | Visited UFD Registry 2655 | -9/Scraptown | Registered with UFD as "Thermoform" 2671 | -9/Scraptown | Entered Cyclist Reading Room 2726 | -9/Scraptown | Visited Cartography Club 2799 | -9/Scraptown | Found Surveybot 17 Chip 2848 | -9/Scraptown | Visited A0-MCA Data Center 2854 | -9/Scraptown | Given an A+ rating by A0-MCA 2858 | -9/Scraptown | Found A0-MCA's Component Scanner 2887 | -9/Scraptown | Visited Curators Association 2903 | -9/Scraptown | Visited Abandonware Association 2915 | -9/Scraptown | Learned abandonware demo "REBOOT5.EXE" 2950 | -9/Scraptown | Visited Derelict Rescue Squad 2991 | -9/Scraptown | Visited Scrap Suit Storage 3197 | -9/Scraptown | Visited LU-1G1's Boring Crew 3219 | -9/Scraptown | Visited Scrapoid Research Area 3381 | -9/Scraptown | Met Optimus 3381 | -9/Scraptown | Accepted into 0bPrime 3781 | -9/Scraptown | Civil war broke out across Scraptown 3793 | -9/Scraptown | Found Potential Leg 3819 | -9/Scraptown | Discovered new exit (range 7) 3831 | -9/Scraptown | Entered Factory 3831 | -6/Factory | Evolved 8 slots: Power x1, Propulsion x3, Utility x4 3832 | -6/Factory | Identified exit to Extension 3832 | -6/Factory | Identified exit to Factory 3832 | -6/Factory | Identified exit to Lower Caves 3833 | -6/Factory | Loaded intel: 207 non-interactive machine locations 3834 | -6/Factory | Lost 5 allies 4126 | -6/Factory | Build established: Scavenger-Mutant 4353 | -6/Factory | Loaded intel: 8 recycling unit locations 4444 | -6/Factory | Lost 4 parts (1p1n1u1w) 4446 | -6/Factory | Crushed by falling debris 4487 | -6/Factory | Build established: Mutant 4493 | -6/Factory | System corruption reached 10% 4501 | -6/Factory | Learned location of Protoforge (-2) 4549 | -6/Factory | Entered another Factory area 4549 | -5/Factory | Evolved 2 slots: Utility x2 4571 | -5/Factory | Lost 4 parts (1p1n2w) 4573 | -5/Factory | Garrison activated, responded to threat 4618 | -5/Factory | Discovered new exit (range 15) 4625 | -5/Factory | Identified exit to Upper Caves 4628 | -5/Factory | Entered Upper Caves 4629 | -5/Upper Caves | Learned Factory stockpile data 4681 | -5/Upper Caves | Encountered a Warlord checkpoint 4798 | -5/Upper Caves | Build established: Hacker-Mutant 5051 | -5/Upper Caves | Discovered new exit (range 6) 5057 | -5/Upper Caves | Identified exit to Upper Caves 5178 | -5/Upper Caves | Entered another Upper Caves area 5193 | -5/Upper Caves | Learned Factory terminal intel 5292 | -5/Upper Caves | Build established: Scavenger-Mutant 5640 | -5/Upper Caves | Attracted the attention of an 0b10 outpost 5703 | -5/Upper Caves | Lost 5 parts (1p2n2u) 5723 | -5/Upper Caves | Learned Factory garrison access intel 5820 | -5/Upper Caves | Found Alien Artifact 5820 | -5/Upper Caves | Identified Dimensional Node Initializer 5820 | -5/Upper Caves | Initialized slip node 6010 | -5/Upper Caves | Discovered new exit (range 8) 6016 | -5/Upper Caves | Identified exit to Warlord 6024 | -5/Upper Caves | Identified exit to Factory 6032 | -5/Upper Caves | Entered Warlord 6043 | -5/Warlord | Lost 4 parts (2p1n1w) 6099 | -5/Warlord | System corruption cleaned by Quarantine Array 6233 | -5/Warlord | Rebuked by Warlord 6258 | -5/Warlord | Warlord's base attacked by MAIN.C 6281 | -5/Warlord | Build established: Mutant 6322 | -5/Warlord | Found Vortex Rail 6327 | -5/Warlord | Found Vortex Rail 6608 | -5/Warlord | Warlord forces counterattacked 6686 | -5/Warlord | Spotted Executioner 6752 | -5/Warlord | Discovered new exit (range 11) 6758 | -5/Warlord | Lost 12 allies 6759 | -5/Warlord | Spotted Executioner 6764 | -5/Warlord | Identified exit to Proximity Caves 6765 | -5/Warlord | Entered Proximity Caves 6777 | -4/Proximity Caves | Spotted B-86 Titan 6821 | -4/Proximity Caves | Lost 3 parts (3u) 6955 | -4/Proximity Caves | Build established: Scavenger-Mutant 6963 | -4/Proximity Caves | Lost 3 parts (1p2w) 7056 | -4/Proximity Caves | Discovered exit to Factory (range 8) 7122 | -4/Proximity Caves | Entered Factory 7122 | -4/Factory | Evolved 2 slots: Propulsion x1, Utility x1 7124 | -4/Factory | Loaded intel: 24 terminal locations 7125 | -4/Factory | Loaded intel: 2 garrison access locations 7151 | -4/Factory | Loaded intel: 8 recycling unit locations 7545 | -4/Factory | Lost 3 parts (1p1n1u) 7652 | -4/Factory | Core integrity fell below 50% 7679 | -4/Factory | Lost 14 parts (2p6n4u2w) 7753 | -4/Factory | Core integrity fell below 20% 7758 | -4/Factory | Destroyed by G-67 Veteran with Plasma Rifle Last Messages --------------- 07738_ Construction Platform disabled. 07743_ ALERT: Hostiles spotted, dispatching reinforcements to Terminal F004. 07743_ Surveybot 17 Chip destroyed. 07748_ ALERT: Potential suspicious activity detected, Programmers report to Factory Zone 7T. 07748_ Connecting with Terminal... 07748_ ALERT: Suspicious activity at Terminal F009. Dispatching Investigation squad. 07750_ Slug penetrates Wall. 07750_ Penetrated by Slug. 07750_ A0-MCA's Component Scanner destroyed. 07750_ Slug penetrates Wall. 07751_ Vortex penetrates Wall. 07753_ Dropped Vortex Rail. 07754_ Slammed into S-27 Virus. 07755_ Critical hit (Burn: +50). 07755_ Penetrated by Slug. 07755_ Slug penetrates Wall. Map ----- +----------------------------------------------------+ | ?????????????G????????????????????????????????? | | ???????????"""????????????????????????????????? | | ?????????????"????????????????????????????????? | | ??????????????????????????????????????????????? | | ??????????????????????????????????????????????? | | ??????????????????????????????????????????????? | | ??????????????????????????????????????????????? | | ??????????????????????????????????????????????? | | ??????????????????????????????????????????????? | | ??""T""???????????????????????????????????????? | | ??"""""???????????????????????????????????????? | | ??????????????????????????????????????????????? | | ??????????????????????????????????????????????? | | ??????????????????????????????????????????????? | | ??????????????????????????????????????????????? | | ??????????????????????????????????????????????? | | ??????????????????????######??????????????????? | | ?????????????????????? #??????????????????? | | ??????????????????????? +??????????!???????? | | ??????????????????????? #??????????????????? | | ?????????????########### #??????????????????? | | ?????????????# """"" # #??????????????????? | | ?????????????# ""T"" # #??????????????????? | | ?????????????# ss # #???????#??????????? | | ?????????????#] """"g/ #?????" #??????????? | | ?????????????# """"@# #???? ????????????? | | ?????????????# """" # ####"#########+###?? | | ?????????????# """" # ? | | ?????????????#! [ssg # ? | | ?????????????#######;s;; ? | | ???????????????????# ##########+#########/????? | | ???????????????????# #??# #????????? | | ???????????????????# #??# """"""" #????????? | | ???????????????????#g#??# """"""" #????????? | | ???????????????????# # """"""" # """" # | | ???????????????????######! """"" " # """" # | | ????????????????????????# # """" # | | ????????????????????????# # # | | ????????????????????????# # # | | ????????????????????????# [ # # | | ????????????????????????# " " ########## | | ????????????????????????# "Y" # | | ???????????????????????## """ # ] ! | | ??????????????????????################ ! | | ?????????????##########"###########??# | | ?????????????# ## #??# ! | | ?????????????# ## #??# | | ?????????????# ## #??# | | ?????????????# """ """ ## ######+###### | | ?????????????# """ """ ## ! # T | +----------------------------------------------------+ Best States ------------- Heat Dissipation 59 Energy Generation 33 Energy Capacity 530 Matter Stores 300 Matter Capacity 300 Sight Range 21 Robot Scan Range 16 Terrain Scan Density 1210 Armor Coverage 250 Resistance: KI 30 Propulsion Shielding 90 Point Defense Rating 160 Evasion (%) 66 Recoil Reduction 3 Offensive Hacking 21 Item Schematics ----------------- Gravmag System | -9/Recycling | Hacked Arm. Huge Wheel | -5/Factory | Scanalyzed IFF Parser | -5/Factory | Scanalyzed Adv. Sensor Array | -5/Factory | Scanalyzed Robot Schematics ------------------ None Fabricated ------------ Nothing Repaired ---------- Nothing Studied --------- Arm. Huge Wheel | -6/Factory | Hacked Arm. Leg | -5/Factory | Hacked Alien Tech Used ----------------- Dimensional Node Initializer Achievements -------------- None Challenges ------------ None Game ------ Seed ShiftFlightInitializer Manual? 0 Play Time 01:24:28 Cumulative 152.3 hours Start 2026.04.04 @ 23:01:18 End 2026.04.05 @ 00:29:18 Sessions 1 Manual Loads 0 Difficulty Rogue Special Mode None Game No. 222 Rogue 222 Adventurer 0 Explorer 0 Win Type - Total 1 Types 1/0/0/0/0/0/0/0/0/0 Lore% 67 Gallery% 57 Achievement% 43 Wizard Run 0 Options --------- Layout 2 ASCII 0 Keyboard 0 Movement Mouse Keybinds 0 Fullscreen 1 Font 24/Smallcaps Map View 50x44 Zoom Use 0% Tactical HUD 1 Map Filters NONE Filters NONE Steam 1 RUN: 651c4815-fe36-464f-8050-7e7fd0ca633c